Cogmind - Beta 15 @@@ ROGUE MODE // 2025.05.09 @ 01:46:06 Player: FloorSandwich Result: Core destroyed Performance ------------- Evolutions (2) 1000 Regions Visited (4) 800 Robots Destroyed (57) 285 Value Destroyed (1448) 1448 Prototype IDs (1) 20 Alien Tech Used (0) 0 Bonus (0) 0 TOTAL SCORE: 3553 Bonus ------- None Cogmind --------- Core Integrity 0/550 Matter 252/300 Energy 100/100 System Corruption 17% Temperature Cool (57) Movement Core (100) Ox1 Location -8/Storage Parts ------- > --- POWER (2) -------- (None) > --- PROPULSION (3) --- (None) > --- UTILITY (3) ------ Hardened Light Armor Plating > --- WEAPON (3) ------- (None) > --- INVENTORY (5) ---- (None) Peak State ------------ > --- POWER ------------ Light Ion Engine > --- PROPULSION ------- Carbon-fiber Leg Carbon-fiber Leg Carbon-fiber Leg > --- UTILITY ---------- Small Storage Unit Core Shielding Hacking Suite > --- WEAPON ----------- Beam Rifle Beam Rifle Flak Cannon > --- INVENTORY -------- Ion Engine Carbon-fiber Leg Core Shielding Hardened Light Armor Plating Hardened Light Armor Plating Light Assault Rifle Rocket Launcher [Rating: 23] Favorites ----------- Power Cooled Ion Engine Engine Cooled Ion Engine Propulsion Light Treads Treads Light Treads Leg Carbon-fiber Leg Wheel Wheel Utility Small Storage Unit Storage Small Storage Unit Processor Terrain Scan Processor Hackware Hacking Suite Protection Core Shielding Weapon Heavy Assault Rifle Energy Gun EM Pulse Gun Ballistic Gun Heavy Assault Rifle Ballistic Cannon Improved Light Cannon Launcher Rocket Launcher Build | -11 -10 -9 -8 -8 ------- Run | Yrd Mat Mat Mat Sto Slots Evolved 4 | . . 2 2 . Power 1 | . . 1 . . Propulsion 1 | . . . 1 . Utility 1 | . . . 1 . Weapon 1 | . . 1 . . Parts Attached 39 | 7 . 15 13 4 Power 4 | 2 . 2 . . Engine 4 | 2 . 2 . . Core . | . . . . . Reactor . | . . . . . Propulsion 9 | 2 . 2 4 1 Treads 2 | 2 . . . . Leg 5 | . . . 4 1 Wheel 2 | . . 2 . . Hover . | . . . . . Flight . | . . . . . Utility 8 | 1 . 1 3 3 Device . | . . . . . Storage 1 | 1 . . . . Processor 1 | . . 1 . . Hackware 1 | . . . 1 . Protection 5 | . . . 2 3 Artifact . | . . . . . Weapon 18 | 2 . 10 6 . Energy Gun 5 | 1 . 1 3 . Energy Cannon . | . . . . . Ballistic Gun 8 | 1 . 6 1 . Ballistic Cannon 2 | . . 1 1 . Launcher 3 | . . 2 1 . Special Weapon . | . . . . . Impact Weapon . | . . . . . Slashing Weapon . | . . . . . Piercing Weapon . | . . . . . Special Melee Weapon . | . . . . . Unidentified Prototypes 1 | . . 1 . . Parts Lost 25 | . . 5 4 16 Power 3 | . . 1 . 2 Propulsion 6 | . . 2 . 4 Utility 6 | . . . 1 5 Weapon 10 | . . 2 3 5 Highest Loss Streak 14 | . . 3 4 14 To Critical Strikes . | . . . . . Average Backups 5 | 1 1 6 6 3 Power 1 | 1 1 1 1 . Propulsion . | . . . . . Utility 2 | . . 2 3 1 Weapon 1 | . . 1 1 . Tool/Special . | . . . . . Unused Backups 2 | . . 1 1 . Power 1 | . . 1 . . Propulsion 1 | . . . 1 . Utility . | . . . . . Weapon . | . . . . . Tool/Special . | . . . . . Average Slot Usage (%) 79 | . 85 83 65 54 Engine 14 | . 14 16 6 5 Treads 7 | . 28 6 . . Leg 1 | . . . 10 13 Wheel 5 | . . 6 . . Storage 10 | . 14 11 9 4 Processor 8 | . . 10 2 . Protection 1 | . . . 8 10 Energy Gun 7 | . 14 5 16 2 Ballistic Gun 16 | . 14 20 3 5 Ballistic Cannon 4 | . . 5 2 4 Peak Build Rating 23 | 6 6 17 23 22 Average Rating 12 | 3 6 13 14 12 On Entrance 9 | . 6 6 13 22 Naked Turns . | . . . . . Heaviest Build 30 | 11 11 30 26 20 Greatest Support 45 | 40 40 40 45 45 Greatest Overweight (x) 8 | . . 7 8 4 Average Overweight (x) 1 | . . 1 1 . Largest Inventory Capacity 8 | 8 8 8 8 8 Average Capacity 7 | 7 8 8 8 6 Most Carried 8 | 5 2 8 8 7 Average Carried 5 | 1 1 6 6 3 Final Capacity 8 | 8 8 8 8 5 Final Carried 7 | 1 2 7 7 . Class Distribution -------------------- 62% | Gunner 24% | Mutant 12% | Tank Dominant Class ---------------- Mutant | -10/Materials Gunner | -9/Materials Tank | -8/Materials Mutant | -8/Storage Resources | -11 -10 -9 -8 -8 ----------- Run | Yrd Mat Mat Mat Sto Matter Collected 1122 | 268 12 574 268 . Remotely . | . . . . . Salvage Created 1613 | . 154 1113 346 . Parts 134 | . 17 92 25 . Haulers Intercepted . | . . . . . Recyclers Shooed 2 | . . 2 . . Parts Field Recycled . | . . . . . Retrieved Matter . | . . . . . Parts Self-Destructed . | . . . . . Prevented . | . . . . . Kills | -11 -10 -9 -8 -8 ------- Run | Yrd Mat Mat Mat Sto Combat Hostiles Destroyed 49 | . 7 31 10 1 Guns 32 | . 7 20 5 . Cannons 5 | . . 5 . . AOE 11 | . . 6 5 . Classes Destroyed 8 | . 2 6 . . Worker 3 | . . 1 2 . Builder 3 | . . 2 1 . Recycler 1 | . . 1 . . Watcher 1 | . . 1 . . Swarmer 21 | . 6 11 4 . Grunt 16 | . 1 10 4 1 Duelist 3 | . . 2 1 . Sentry 9 | . . 8 1 . Best Kill Streak 5 | . 4 5 3 1 Combat Bots Only 5 | . 4 5 3 1 Max Kills in Single Turn 3 | . 2 3 2 1 Gunslinging 1 | . 1 . . . Exploded 2 | . . 2 2 . Melee . | . . . . . Uniques/NPCs Destroyed . | . . . . . Combat | -11 -10 -9 -8 -8 -------- Run | Yrd Mat Mat Mat Sto Hostile Shots Fired 334 | . 28 132 91 83 Missed 99 | . 11 48 20 20 Hits 235 | . 17 84 71 63 Melee 7 | . . 1 6 . Projectile 228 | . 17 83 65 63 Critical Strikes 11 | . 1 4 4 2 Damage Taken 4044 | . 135 1153 899 1857 Core 712 | . 8 153 173 378 Absorbed by Shields . | . . . . . Redirected to Shielding 47 | . . . 3 44 Regen/Repaired (Parts) 94 | . . 94 . . Core Remaining (%) 85 | 100 96 61 . . Volleys Fired 117 | . 10 66 27 14 Largest 3 | . 2 3 3 3 Hottest 168 | . 60 111 168 132 Shots Fired 290 | . 20 173 62 35 Gun 244 | . 20 150 49 25 Cannon 35 | . . 20 9 6 Launcher 11 | . . 3 4 4 Special . | . . . . . Kinetic 197 | . 10 140 27 20 Thermal 56 | . . 14 31 11 Explosive 11 | . . 3 4 4 Electromagnetic 26 | . 10 16 . . Robot Hit Streak 12 | . 4 12 6 8 Robot Miss Streak 9 | . 3 9 2 3 Penetration Max . | . . . . . Secondary Targets 9 | . 4 4 1 . Max Gunslinging Chain 1 | . 1 1 1 . Shots Hit Robots 142 | . 9 89 29 15 Core Hits 106 | . 8 65 24 9 Critical Kills . | . . . . . Critical Parts Destroyed 1 | . . 1 . . Critical Strikes 5 | . . 2 3 . Burn 2 | . . . 2 . Destroy 1 | . . 1 . . Blast 2 | . . 1 1 . Melee Attacks . | . . . . . Impact . | . . . . . Slashing . | . . . . . Piercing . | . . . . . Sneak Attacks . | . . . . . Combat Hostiles . | . . . . . Follow-up Attacks . | . . . . . Damage Inflicted 3000 | . 99 1788 740 373 Guns 1754 | . 99 1137 352 166 Cannons 330 | . . 219 60 51 Explosions 800 | . . 358 324 118 Melee . | . . . . . Ramming 116 | . . 74 4 38 Kinetic 1369 | . 30 1057 182 100 Thermal 569 | . . 222 230 117 Explosive 747 | . . 305 324 118 Electromagnetic 199 | . 69 130 . . Impact . | . . . . . Slashing . | . . . . . Piercing . | . . . . . Highest Corruption 17 | . . . . 17 Average Corruption 12 | . . . . 12 Corruption Purged . | . . . . . Corruption Blocked . | . . . . . Effects 6 | . . . . 6 Message Errors 1 | . . . . 1 Matter Fused 2 | . . . . 2 Heat Flow Errors 2 | . . . . 2 Parts Rejected 1 | . . . . 1 Overload Shots . | . . . . . Overflow Damage 23 | . . 2 11 10 Projectiles 2 | . . 2 . . Explosions 21 | . . . 11 10 Melee . | . . . . . Knockbacks 3 | . . 1 . 2 Impact 1 | . . . . 1 Kinetic 2 | . . 1 . 1 Secondary . | . . . . . Self-Inflicted Damage 128 | . . 70 2 56 Shots 3 | . . 1 . 2 Rammed 42 | . . 12 2 28 Targets Rammed 43 | . . 13 2 28 Kicked . | . . . . . Crushed 1 | . . 1 . . Highest Temperature 324 | . 40 239 324 219 Average Temperature 77 | . 22 57 135 75 Received Heat Transfer 1212 | . 12 336 261 603 Effects 4 | . . . 4 . Interference 4 | . . . 4 . Siege Activations . | . . . . . Martial Activations . | . . . . . Shielding Activations . | . . . . . Robots Disrupted . | . . . . . Combat Hostiles . | . . . . . Robots Corrupted . | . . . . . Combat Hostiles . | . . . . . Parts Fried . | . . . . . Impact Corruptions . | . . . . . Robots Melted . | . . . . . Combat Hostiles . | . . . . . Parts Melted 4 | . . . 3 1 Heat Transferred 1296 | . . 260 740 296 Parts Sabotaged . | . . . . . Parts Stolen . | . . . . . Parts Stripped . | . . . . . Power Chain Reactions 1 | . . 1 . . Alert | -11 -10 -9 -8 -8 ------- Run | Yrd Mat Mat Mat Sto Maximum Alert Level 1 | . . 1 1 . Low Security (%) 45 | 100 100 26 92 100 Level 1 54 | . . 73 7 . Level 2 . | . . . . . Level 3 . | . . . . . Level 4 . | . . . . . Level 5 . | . . . . . High Security . | . . . . . Max Security . | . . . . . Peak Influence 345 | . 95 345 245 98 Initial 127 | . . 31 127 98 Average 185 | . 37 225 152 46 Influence Increases 1469 | . 175 862 328 104 Destroy 0b10 Robot/C 980 | . 140 620 200 20 Destroy 0b10 Robot/NC 40 | . . 25 15 . Destroy Leader 202 | . 20 152 30 . Successful Hack 20 | . . 19 . 1 Disable Machine 45 | . 15 15 15 . Destroy Structure 92 | . . 31 38 23 Partial Spotted 15 | . . . . 15 Lose Combat Pursuer 75 | . . . 30 45 Influence Decreases 1449 | . 100 634 396 319 Entered New Map 357 | . . 44 176 137 Time Decay 910 | . 100 540 180 90 Lost Part 182 | . . 50 40 92 Squads Dispatched 3 | . 1 1 . 1 Investigation 2 | . . 1 . 1 Extermination . | . . . . . Reinforcement 1 | . 1 . . . Assault . | . . . . . Garrison . | . . . . . Intercept . | . . . . . Searches Triggered . | . . . . . Construction Impeded . | . . . . . Haulers Reinforced . | . . . . . Active Scanning Responses . | . . . . . Cargo Convoy Interrupts . | . . . . . Stealth | -11 -10 -9 -8 -8 --------- Run | Yrd Mat Mat Mat Sto Distress Signals 5 | . 1 3 1 . Communications Jammed . | . . . . . Distress Signals . | . . . . . Times Spotted 82 | . 14 46 17 5 Peak Tracking Total 8 | . 6 6 8 3 Tactical Retreats 4 | . . . 1 3 Traps | -11 -10 -9 -8 -8 ------- Run | Yrd Mat Mat Mat Sto Traps Triggered 4 | . . 3 . 1 Indirectly . | . . . . . Trap Hack Attempts . | . . . . . Triggered . | . . . . . Disarmed . | . . . . . Reprogrammed . | . . . . . Reused . | . . . . . Traps Extracted . | . . . . . Installed . | . . . . . Triggered . | . . . . . Machines | -11 -10 -9 -8 -8 ---------- Run | Yrd Mat Mat Mat Sto Machines Disabled 3 | . 1 1 1 . Max in Single Turn 1 | . 1 1 1 . Machines Repaired . | . . . . . Machines Dismantled . | . . . . . Machines Sabotaged . | . . . . . Overloaded Fab Kills . | . . . . . Hacking | -11 -10 -9 -8 -8 --------- Run | Yrd Mat Mat Mat Sto Machines Accessed 6 | . . 5 . 1 Terminals 5 | . . 4 . 1 Fabricators . | . . . . . Repair Stations 1 | . . 1 . . Recycling Units . | . . . . . Scanalyzers . | . . . . . Garrison Access . | . . . . . Total Hacks 19 | . . 15 . 4 Successful 13 | . . 10 . 3 Failed 5 | . . 4 . 1 Catastrophic 1 | . . 1 . . Database Lockouts 1 | . . 1 . . Manual . | . . . . . Terminals 17 | . . 13 . 4 Fabricators . | . . . . . Repair Stations 2 | . . 2 . . Recycling Units . | . . . . . Scanalyzers . | . . . . . Garrison Access . | . . . . . Terminal Hacks 11 | . . 8 . 3 Record 7 | . . 4 . 3 Terminal Index 1 | . . 1 . . Dispatch Records 1 | . . 1 . . Zone Layout 2 | . . 2 . . Fabricator Hacks . | . . . . . Repair Station Hacks 2 | . . 2 . . Scan Component 1 | . . 1 . . Repair 1 | . . 1 . . Recycling Unit Hacks . | . . . . . Scanalyzer . | . . . . . Garrison Access Hacks . | . . . . . Unauthorized Hacks . | . . . . . Terminals . | . . . . . Fabricators . | . . . . . Repair Stations . | . . . . . Recycling Units . | . . . . . Scanalyzers . | . . . . . Garrison Access . | . . . . . Data Cores Recovered . | . . . . . Used . | . . . . . Hacking Detections 3 | . . 2 . 1 Full Trace Events 2 | . . 1 . 1 Feedback Events . | . . . . . Feedback Blocked . | . . . . . Robot Schematics Acquired . | . . . . . Robots Built . | . . . . . Authchips . | . . . . . Time . | . . . . . Total Robot Build Rating . | . . . . . Part Schematics Acquired . | . . . . . Parts Built . | . . . . . Authchips . | . . . . . Time . | . . . . . Total Part Build Rating . | . . . . . Parts Repaired 1 | . . 1 . . Time 25 | . . 25 . . Parts Recycled . | . . . . . Recycled Matter . | . . . . . Retrieved Matter . | . . . . . Retrieved Components . | . . . . . Parts Scanalyzed . | . . . . . Part Schematics Acquired . | . . . . . Parts Damaged . | . . . . . Bothacking | -11 -10 -9 -8 -8 ------------ Run | Yrd Mat Mat Mat Sto Used RIF Installer . | . . . . . Robots Hacked . | . . . . . Non-combat . | . . . . . Combat . | . . . . . Robot Hacks Applied . | . . . . . Relay Couplers Released . | . . . . . Fabnet Peak Effective % . | . . . . . Robots Rewired . | . . . . . Allies Hacked . | . . . . . Hacks Repelled . | . . . . . Allies | -11 -10 -9 -8 -8 -------- Run | Yrd Mat Mat Mat Sto Total Allies . | . . . . . Largest Group . | . . . . . Highest-Rated Group . | . . . . . Highest-Rated Ally . | . . . . . Total Orders . | . . . . . Ally Attacks . | . . . . . Total Damage . | . . . . . Kills . | . . . . . Allies Corrupted . | . . . . . Allies Melted . | . . . . . Intel | -11 -10 -9 -8 -8 ------- Run | Yrd Mat Mat Mat Sto Active Infowar (turns) . | . . . . . Robot Analysis Total . | . . . . . Derelict Logs Recovered . | . . . . . Drone Launches . | . . . . . Drone Recoveries . | . . . . . Exploration | -11 -10 -9 -8 -8 ------------- Run | Yrd Mat Mat Mat Sto Turns Passed 3580 | 87 305 2606 361 221 Spaces Moved 1878 | 63 173 1417 135 90 Core 341 | 24 . 247 54 16 Treads 611 | 39 173 399 . . Legs 155 | . . . 81 74 Wheels 771 | . . 771 . . Hover . | . . . . . Flight . | . . . . . Fastest Speed 50 | 50 160 95 100 120 Average Speed 162 | 118 160 164 183 138 Slowest Speed 450 | 160 160 400 450 250 Overloaded Moves . | . . . . . Propulsion Burnouts . | . . . . . Robots Hopped . | . . . . . Potential Cave-ins 10 | . . . . 10 Cave-ins Triggered 3 | . . . . 3 Exploration Rate (%) 25 | 4 28 74 11 10 Regions Visited 4 Branch Regions 1 Pre-discovered Areas . | . . . . . Known Exits Taken . | . . . . . Unknown Exits Taken 4 | 1 1 1 1 . Scrap Searched . | . . . . . Spaces Dug 34 | . . . . 34 Terrain Destroyed 112 | . . 29 38 45 Melee . | . . . . . Projectile 1 | . . 1 . . AOE 111 | . . 28 38 45 Terrain Rammed . | . . . . . Walls Destroyed . | . . . . . Machines Disabled . | . . . . . Actions | -11 -10 -9 -8 -8 --------- Run | Yrd Mat Mat Mat Sto Total 2153 | 76 183 1554 198 142 Wait . | . . . . . Move 1874 | 62 172 1416 134 90 Hop . | . . . . . Pick Up 40 | 6 1 22 10 1 Fast Attach 5 | 1 . 1 3 . Attach 43 | 6 . 17 12 8 Detach 9 | 1 . 5 3 . Swap 5 | . . 2 3 . Drop 16 | . . 12 4 . Fire 117 | . 10 66 27 14 Melee . | . . . . . Ram 39 | . . 10 2 27 Kick . | . . . . . Crush 3 | . . 3 . . Escape Stasis 2 | . . . . 2 Rewire . | . . . . . Trap . | . . . . . Miscellaneous . | . . . . . Route ------- -11/Scrapyard -10/Materials -9/Materials -8/Materials -8/Storage History --------- Turn | Location | Event 14 | -11/Scrapyard | Discovered new exit (range 16) 88 | -11/Scrapyard | Entered Materials 293 | -10/Materials | Discovered new exit (range 14) 317 | -10/Materials | Build established: Mutant 393 | -10/Materials | Entered another Materials area 393 | -9/Materials | Evolved 2 slots: Power x1, Weapon x1 984 | -9/Materials | Build established: Gunner 1658 | -9/Materials | Central database locked down 2055 | -9/Materials | Lost 3 parts (1n2w) 2573 | -9/Materials | Discovered new exit (range 15) 2950 | -9/Materials | Repaired Cld. Ion Engine 2999 | -9/Materials | Entered another Materials area 2999 | -8/Materials | Evolved 2 slots: Propulsion x1, Utility x1 3090 | -8/Materials | Lost 4 parts (1u3w) 3181 | -8/Materials | Discovered new exit (range 12) 3330 | -8/Materials | Build established: Tank 3360 | -8/Materials | Entered Storage 3458 | -8/Storage | Crushed by falling debris 3458 | -8/Storage | Core integrity fell below 50% 3469 | -8/Storage | Crushed by falling debris 3506 | -8/Storage | Crushed by falling debris 3506 | -8/Storage | Core integrity fell below 20% 3506 | -8/Storage | System corruption reached 10% 3537 | -8/Storage | Lost 14 parts (1p4n4u5w) 3581 | -8/Storage | Core destroyed Last Messages --------------- Acquired Ion Engine. M-13 Machinist repairs G-47 Trooper. System corrupted: Heat flow error (+108). Slammed into G-47 Trooper. Destabilizing: Core damaged (-11). Slammed into G-47 Trooper. :2=W Destabilizing: System corrupted (+1). Hrd. Light Armor Plating destroyed. Slammed into G-47 Trooper. G-47 Trooper knocked back. Slammed into G-47 Trooper. System corrupted: Heat flow error (+203). Slammed into G-47 Trooper. Destabilizing: Core damaged (-16). Slammed into G-47 Trooper. Destabilizing: Core damaged (-16). Map ----- +----------------------------------------------------+ | | | | | | | | | | | | | | | | | | | | | | | | | | | | | ????????????????????????????????? | | ????????????????????????????????? | | ????????????????????????????????? | | ####????????????????????????????? | | # ????#######???????????????? | | # ??# ###########?????? | | + # ^ #?????? | | # + T ^ #?????? | | # ! # #?????? | | # ??# ####+########???? | | # ????## ##?# #???? | | # ???????# #??#[[= @m #???? | | ##?????????# #??#[[] g #???? | | ???????????# #?##[= """ #???? | | ???"T"####?# #?## """ #???? | | ?? # #### """ #???? | | ?? # # # #???? | | ???????""" # ## #???? | | ?????? """ # ############???? | | ?????? """ # # ###????????? | | ?????? """ # #?????????? | | ???????""" # # # ###?????????? | | ????? ########???????????? | | ????#######? ???????????????????? | | ????????????????????????????????? | | ????????????????????????????????? | | ????????????????????????????????? | | ????????????????????????????????? | | ????????????????????????????????? | | ????????????????????????????????? | | ????????????????????????????????? | | ????????????????????????????????? | | ????????????????????????????????? | | ????????????????????????????????? | | ????????????????????????????????? | | ????????????????????????????????? | +----------------------------------------------------+ Best States ------------- Heat Dissipation 31 Energy Generation 21 Energy Capacity 445 Matter Stores 300 Matter Capacity 300 Sight Range 16 Terrain Scan Density 85 Armor Coverage 300 Core Shielding 20 Evasion (%) 55 Recoil Reduction 2 Offensive Hacking 10 Item Schematics ----------------- None Robot Schematics ------------------ None Fabricated ------------ Nothing Repaired ---------- Cld. Ion Engine | 14% | -9/Materials Alien Tech Used ----------------- None Achievements -------------- None Challenges ------------ None Game ------ Seed ArcsightFissionFacilitator Manual? 0 Play Time 00:26:00 Cumulative 3.6 hours Start 2025.05.09 @ 01:22:18 End 2025.05.09 @ 01:46:06 Sessions 1 Manual Loads 0 Difficulty Rogue Special Mode None Game No. 17 Rogue 17 Adventurer 0 Explorer 0 Win Type - Total 0 Types 0/0/0/0/0/0/0/0/0/0 Lore% 1 Gallery% 9 Achievement% 9 Wizard Run 0 Options --------- Layout 0 ASCII 0 Keyboard 0 Movement Arrows Keybinds 0 Fullscreen 1 Font 24/Smallcaps Map View 56x25 Zoom Use 100% Tactical HUD 0 Map Filters NONE Filters NONE Steam 1 RUN: aa73883b-895d-44b2-beb4-c04cf2a069fc